bitfinex/quotes_SOLUSD_20240716
["timestamp","ask_amount","ask_price","bid_price","bid_amount"]
[1721147530027,46.73281756,159.7,159.61,15.6624]
[1721147530724,46.73281756,159.7,159.62,6.2648]
[1721147531099,56.73281756,159.7,159.6,6.2654]
[1721147531303,56.73281756,159.7,159.58,31.3242]
[1721147531304,10.0,159.68,159.58,15.6583]
[1721147531504,46.73281756,159.67,159.56,6.2669]
[1721147531716,10.0,159.66,159.56,6.2669]
[1721147531927,46.56281756,159.65,159.56,6.2669]
[1721147532105,1.73281756,159.64,159.56,6.2669]
[1721147532509,1.73281756,159.64,159.57,6.2666]
[1721147532818,1.73281756,159.64,159.58,23.18500219]
[1721147533125,0.17,159.64,159.59,6.266]
[1721147533339,0.17,159.64,159.6,6.2656]
[1721147533642,0.17,159.64,159.61,6.265]
[1721147534304,0.17,159.64,159.58,21.9319]
[1721147534508,0.17,159.64,159.58,6.266]
[1721147534722,0.17,159.64,159.54,47.9837]
[1721147534901,1.73281756,159.64,159.56,15.6675]
[1721147535105,1.73281756,159.64,159.56,6.2672]
[1721147535299,1.73281756,159.64,159.54,16.6444]
[1721147535300,1.73281756,159.64,159.57,6.2667]
[1721147535528,1.73281756,159.64,159.54,16.6444]
[1721147536030,6.5888,159.62,159.53,6.2683]
[1721147536332,1.56281756,159.61,159.53,15.6709]
[1721147536525,1.73281756,159.6,159.53,15.6709]
[1721147536729,1.73281756,159.6,159.53,21.9392]
[1721147538432,1.73281756,159.6,159.5,32.6700696]
[1721147538930,1.73281756,159.6,159.5,38.9392696]
[1721147539306,1.73281756,159.6,159.51,6.2689]
[1721147539505,1.73281756,159.6,159.5,32.6700696]
[1721147539915,1.73281756,159.6,159.5,16.9964696]
[1721147540118,1.73281756,159.6,159.51,1.25241143]
[1721147540333,1.73281756,159.6,159.52,6.2687]
[1721147540632,1.73281756,159.6,159.51,21.9411]
[1721147540828,1.73281756,159.6,159.52,6.2687]
[1721147541040,1.73281756,159.6,159.51,21.9414]
[1721147541224,11.73281756,159.6,159.51,15.6723]
[1721147541430,11.73281756,159.6,159.51,21.9414]
[1721147541431,45.0,159.59,159.51,21.9414]
[1721147541725,1.56281756,159.58,159.52,6.2687]
[1721147541918,1.56281756,159.6,159.53,16.92381415]
[1721147542116,1.56281756,159.6,159.54,6.2677]
[1721147542612,1.56281756,159.6,159.5,0.8280696]
[1721147542830,7.82851756,159.6,159.5,0.8280696]
[1721147543131,45.0,159.59,159.5,7.0974696]
[1721147543326,1.73281756,159.58,159.5,0.8280696]
[1721147543631,1.56281756,159.57,159.5,0.8280696]
[1721147543835,6.2393,159.56,159.5,0.8280696]
[1721147544035,46.73281756,159.55,159.5,0.8280696]
[1721147544215,1.56281756,159.54,159.5,0.8280696]
[1721147544415,1.56281756,159.55,159.5,0.8280696]
[1721147544624,0.17,159.54,159.51,7.51981564]
[1721147544824,6.2393,159.56,159.51,7.51981564]
[1721147544825,7.80211756,159.56,159.51,7.51981564]
[1721147545110,0.17,159.55,159.52,6.2684]
[1721147545440,0.17,159.55,159.52,16.92183723]
[1721147545650,1.56281756,159.59,159.52,23.19053723]
[1721147545936,1.56281756,159.59,159.5,0.8280696]
[1721147546545,10.0,159.58,159.5,0.8280696]
[1721147546718,46.56281756,159.57,159.5,0.8280696]
[1721147547033,0.17,159.56,159.5,0.8280696]
[1721147547244,1.56281756,159.55,159.5,0.8280696]
[1721147547459,7.83081756,159.54,159.5,0.8280696]
[1721147547634,1.73281756,159.54,159.5,0.8280696]
[1721147547823,6.4234,159.52,159.5,0.8280696]
[1721147548026,46.56281756,159.51,159.5,0.8280696]
[1721147548255,46.73281756,159.51,159.5,0.8280696]
[1721147548957,10.0,159.48,159.37,15.686]
[1721147549132,1.56281756,159.47,159.4,15.6837]
[1721147549329,1.56281756,159.47,159.42,6.2726]
[1721147549633,0.17,159.46,159.41,1.25455156]
[1721147550066,0.17,159.46,159.43,15.6805]
[1721147550269,1.56281756,159.51,159.43,15.6805]
[1721147550556,1.56281756,159.51,159.44,1.25427703]
[1721147550734,1.56281756,159.51,159.43,15.6805]
[1721147550935,1.56281756,159.51,159.43,21.9527]
[1721147551131,1.56281756,159.5,159.43,15.6805]
[1721147551354,1.56281756,159.5,159.45,6.2715]
[1721147551652,1.56281756,159.52,159.43,15.6805]
[1721147551960,1.56281756,159.51,159.43,15.6805]
[1721147552159,1.56281756,159.51,159.44,6.2719]
[1721147552455,1.56281756,159.52,159.47,6.2707]
[1721147552640,1.56281756,159.52,159.43,15.6805]
[1721147552838,8.22841756,159.53,159.46,21.9488]
[1721147553046,1.56281756,159.52,159.46,15.6777]
[1721147553253,6.6656,159.53,159.47,6.2707]
[1721147553450,1.56281756,159.52,159.46,15.6777]
[1721147553671,6.6656,159.53,159.46,15.6777]
[1721147553672,1.56281756,159.51,159.46,15.6777]
[1721147553958,1.56281756,159.51,159.43,21.953]
[1721147554141,1.56281756,159.51,159.44,1.25403141]
[1721147554459,0.17,159.5,159.45,1.25404977]
[1721147554762,0.17,159.5,159.46,1.25403089]
[1721147555266,1.56281756,159.52,159.43,15.6807]
[1721147555439,0.17,159.51,159.43,15.6807]
[1721147555743,0.17,159.51,159.44,7.52581191]
[1721147556140,0.17,159.51,159.46,6.271]
[1721147557277,1.56281756,159.57,159.5,1.25335985]
[1721147557474,1.56281756,159.57,159.49,15.6748]
[1721147557768,1.56281756,159.59,159.49,1.25361679]
[1721147557982,1.56281756,159.59,159.5,15.6738]
[1721147558448,6.2672,159.57,159.44,15.4441]
[1721147558648,35.54281756,159.56,159.45,1.25388474]
[1721147558855,6.0528,159.54,159.43,15.6798]
[1721147559164,1.73281756,159.53,159.43,15.6798]
[1721147559352,1.73281756,159.53,159.44,6.2718]
[1721147559556,1.73281756,159.53,159.42,31.3619]
[1721147560147,1.73281756,159.53,159.47,6.2706]
[1721147560463,1.73281756,159.53,159.46,15.6771]
[1721147560858,1.73281756,159.53,159.46,21.9482]
[1721147561060,1.73281756,159.53,159.47,6.2706]
[1721147561269,1.73281756,159.53,159.44,1.25383624]
[1721147561576,1.73281756,159.53,159.43,1.25401924]
[1721147561871,1.73281756,159.53,159.42,15.6808]
[1721147561872,1.73281756,159.53,159.44,15.6789]
[1721147562076,1.73281756,159.53,159.45,1.25387137]
[1721147562280,0.17,159.53,159.51,6.2688]
[1721147562567,0.17,159.53,159.46,1.25383009]
[1721147562765,0.17,159.53,159.49,6.2698]
[1721147562963,0.17,159.53,159.5,1.25371037]
[1721147563180,6.0528,159.58,159.5,1.25371037]
[1721147563366,1.56281756,159.57,159.5,1.25371037]
[1721147563569,1.56281756,159.58,159.51,7.52242555]
[1721147563867,7.86031756,159.61,159.56,6.2671]
[1721147564066,1.56281756,159.6,159.54,1.25327776]
[1721147564257,1.56281756,159.6,159.55,1.2532777]
[1721147564649,6.2975,159.61,159.56,6.2671]
[1721147564845,6.2975,159.61,159.53,15.6701]
[1721147565046,6.2975,159.61,159.54,0.67012269]
[1721147565272,6.2975,159.61,159.54,6.2679]
[1721147565439,6.2975,159.61,159.53,15.6701]
[1721147565644,6.2975,159.61,159.54,6.2679]
[1721147565845,6.2975,159.61,159.53,15.6701]
[1721147565846,1.56281756,159.64,159.56,15.6677]
[1721147566047,6.324,159.65,159.58,15.6653]
[1721147566473,1.56281756,159.67,159.6,6.2656]
[1721147566649,1.56281756,159.7,159.62,6.2648]
[1721147566965,1.56281756,159.7,159.6,15.6637]
[1721147567153,11.56281756,159.7,159.56,23.0661]
[1721147567356,1.56281756,159.7,159.56,23.0661]
[1721147567561,1.56281756,159.7,159.59,15.6645]
[1721147567765,1.56281756,159.7,159.6,7.51833449]
[1721147567967,1.56281756,159.7,159.61,1.25273687]
[1721147568169,1.56281756,159.7,159.61,15.6625]
[1721147568356,1.56281756,159.7,159.57,45.0]
[1721147568550,6.2621,159.69,159.59,6.2656]
[1721147568755,1.56281756,159.68,159.58,21.9321]
[1721147568955,1.56281756,159.67,159.56,16.6197]
[1721147569465,1.56281756,159.67,159.57,6.2665]
[1721147569669,0.17,159.66,159.57,6.2667]
[1721147569847,1.56281756,159.65,159.58,1.25300294]
[1721147570177,0.17,159.64,159.57,15.6664]
[1721147570350,1.56281756,159.64,159.58,6.2663]
[1721147570551,0.17,159.63,159.6,15.6638]
[1721147570751,0.17,159.63,159.58,6.2661]
[1721147571265,0.17,159.63,159.52,42.0061]
[1721147571266,12.402,159.62,159.52,16.6445]
[1721147571450,1.56281756,159.61,159.52,16.6445]
[1721147571646,1.56281756,159.6,159.51,6.2691]
[1721147572079,0.17,159.59,159.5,21.9434]
[1721147572279,1.56281756,159.58,159.48,16.6445]
[1721147572452,1.56281756,159.57,159.48,16.6445]
[1721147572654,1.73281756,159.57,159.48,32.3196]
[1721147573166,1.73281756,159.57,159.51,6.2691]
[1721147573355,0.17,159.57,159.49,31.349]
[1721147573554,1.56281756,159.57,159.51,6.269]
[1721147573763,1.56281756,159.57,159.5,15.6737]
[1721147574097,0.17,159.56,159.49,6.2696]
[1721147574258,1.56281756,159.55,159.47,15.6765]
[1721147574453,1.56281756,159.54,159.47,15.6765]
[1721147574655,0.17,159.54,159.49,6.2696]
[1721147574987,0.17,159.54,159.5,0.62636146]
[1721147575667,1.56281756,159.59,159.5,16.30006146]
[1721147575973,1.56281756,159.59,159.5,0.62636146]
[1721147576275,1.56281756,159.6,159.54,6.2677]
[1721147576479,1.56281756,159.6,159.55,1.25324519]
[1721147576860,1.56281756,159.6,159.54,6.2679]
[1721147577072,1.56281756,159.61,159.54,15.6693]
[1721147577256,1.56281756,159.61,159.55,7.52070492]
[1721147577569,1.56281756,159.6,159.53,6.2683]
[1721147578363,6.137,159.62,159.52,6.2687]
[1721147578364,1.73281756,159.59,159.52,6.2687]
[1721147578573,0.17,159.59,159.52,6.2687]
[1721147578759,1.56281756,159.6,159.51,15.6724]
[1721147578966,0.17,159.59,159.51,15.6724]
[1721147579293,7.82941756,159.58,159.5,0.62636146]
[1721147579454,1.56281756,159.57,159.5,0.62636146]
[1721147579650,1.73281756,159.57,159.5,0.62636146]
[1721147579855,80.71281756,159.57,159.5,0.62636146]
[1721147580175,96.97971756,159.57,159.5,0.62636146]
[1721147580373,1.56281756,159.56,159.5,0.62636146]
[1721147580576,0.17,159.55,159.51,1.25229324]
[1721147580762,0.17,159.55,159.5,0.62636146]
[1721147580964,0.17,159.55,159.51,6.269]
[1721147581286,0.17,159.55,159.5,6.89586146]
[1721147581463,1.56281756,159.55,159.5,0.62636146]
[1721147581778,0.17,159.56,159.5,0.62636146]
[1721147582085,1.73281756,159.56,159.5,0.62636146]
[1721147582672,6.0382,159.55,159.5,0.62636146]
[1721147582884,1.56281756,159.54,159.5,0.62636146]
[1721147583192,0.17,159.53,159.5,0.62636146]
[1721147583354,1.56281756,159.52,159.5,0.62636146]
[1721147583559,1.73281756,159.51,159.5,0.62636146]
[1721147583779,0.17,159.51,159.5,0.62636146]
[1721147584167,1.56281756,159.54,159.5,0.62636146]
[1721147584479,6.0382,159.55,159.5,16.29976146]
[1721147584687,6.0382,159.55,159.51,1.25363267]
[1721147584857,6.0382,159.55,159.51,1.25360303]
[1721147585057,6.0382,159.55,159.5,0.62636146]
[1721147585484,0.17,159.54,159.5,6.89586146]
[1721147585859,0.17,159.54,159.51,1.2536766]
[1721147586061,6.4268,159.6,159.54,6.2676]
[1721147586255,1.56281756,159.59,159.55,1.25333978]
[1721147586783,6.4268,159.6,159.56,6.2671]
[1721147586993,9.7043,159.64,159.57,1.25318895]
[1721147587161,11.30309907,159.63,159.55,21.9361]
[1721147587367,9.7043,159.64,159.57,6.2668]
[1721147587660,1.56281756,159.63,159.58,1.25308813]
[1721147588067,1.56281756,159.64,159.57,15.6662]
[1721147588293,1.56281756,159.64,159.57,21.9329]
[1721147588467,1.56281756,159.64,159.58,1.2521582]
[1721147588668,1.56281756,159.64,159.52,34.0485]
[1721147588974,6.4305,159.65,159.53,65.09297376]
[1721147589305,1.56281756,159.67,159.61,6.2649]
[1721147589474,1.56281756,159.67,159.62,1.25277292]
[1721147589802,15.9487,159.69,159.62,1.25277292]
[1721147589962,1.56281756,159.68,159.62,1.25277292]
[1721147590594,1.56281756,159.67,159.58,6.2663]
[1721147590770,1.56281756,159.67,159.56,6.4018]
[1721147590970,1.56281756,159.67,159.58,6.2663]
[1721147591172,0.17,159.66,159.59,6.2659]
[1721147591567,0.17,159.67,159.58,6.2663]
[1721147591981,0.17,159.67,159.59,6.2657]
[1721147592290,1.73281756,159.67,159.59,15.6645]
[1721147592460,1.73281756,159.67,159.59,21.9304]
[1721147592967,1.73281756,159.67,159.59,6.2659]
[1721147593176,1.73281756,159.67,159.6,1.25268246]
[1721147593479,1.73281756,159.67,159.6,7.51818246]
[1721147593991,1.73281756,159.67,159.61,7.51801716]
[1721147594187,0.17,159.67,159.61,1.25291716]
[1721147594510,1.56281756,159.68,159.62,15.6617]
[1721147594666,7.80721756,159.69,159.64,6.264]
[1721147594865,6.2444,159.69,159.65,7.51585289]
[1721147595067,15.8309,159.73,159.66,7.51483587]
[1721147595266,1.56281756,159.72,159.66,6.263]
[1721147595691,1.56281756,159.72,159.64,15.6598]
[1721147595692,1.56281756,159.72,159.65,6.2635]
[1721147595994,7.68941756,159.73,159.66,16.90818735]
[1721147596170,7.68941756,159.73,159.67,6.2628]
[1721147596370,7.68941756,159.73,159.68,1.25023075]
[1721147597494,6.1266,159.73,159.68,6.2624]
[1721147597690,6.1266,159.73,159.67,6.2628]
[1721147597901,6.1266,159.73,159.66,15.6578]
[1721147598067,42.80141666,159.76,159.68,6.2621]
[1721147598276,16.3232,159.77,159.71,6.2613]
[1721147598585,1.56281756,159.76,159.72,1.25205782]
[1721147598790,1.56281756,159.76,159.72,7.51275782]
[1721147598963,1.56281756,159.79,159.73,6.57991108]
[1721147599167,1.56281756,159.8,159.74,6.57979106]
[1721147599595,1.56281756,159.81,159.75,7.51144746]
[1721147600006,1.56281756,159.81,159.74,15.6498]
[1721147600196,1.56281756,159.81,159.74,21.9099]
[1721147600381,1.56281756,159.81,159.71,15.6528]
[1721147600713,1.56281756,159.81,159.73,6.2605]
[1721147600873,1.56281756,159.81,159.72,6.2609]
[1721147601075,0.17,159.8,159.71,15.6528]
[1721147601274,1.56281756,159.79,159.72,6.2608]
[1721147601471,0.17,159.78,159.73,6.2604]
[1721147601688,1.56281756,159.81,159.73,15.6509]
[1721147602310,1.56281756,159.81,159.74,6.2601]
[1721147603190,0.17,159.8,159.74,6.2601]
[1721147603389,0.17,159.8,159.73,21.9114]
[1721147603594,1.73281756,159.8,159.7,31.7247]
[1721147603776,1.73281756,159.8,159.72,15.6518]
[1721147603974,0.17,159.8,159.75,6.2596]
[1721147604500,0.17,159.8,159.74,6.26]
[1721147604881,0.17,159.8,159.74,15.6498]
[1721147605197,6.5821,159.82,159.74,15.6498]
[1721147605198,0.17,159.81,159.75,6.2597]
[1721147605506,0.17,159.81,159.76,6.2593]
[1721147605713,28.6082472,159.86,159.76,6.2593]
[1721147605714,6.351,159.87,159.76,15.6479]
[1721147605877,1.56281756,159.86,159.77,6.2588]
[1721147606082,1.56281756,159.85,159.77,6.2588]
[1721147606281,1.56281756,159.85,159.78,16.88070229]
[1721147606483,1.56281756,159.85,159.79,7.49324672]
[1721147606693,7.91381756,159.87,159.8,1.25137004]
[1721147606896,6.351,159.87,159.81,6.2571]
[1721147607178,6.351,159.87,159.8,15.6437]
[1721147607179,1.56281756,159.86,159.8,15.6437]
[1721147607387,1.56281756,159.86,159.8,21.9012]
[1721147607608,7.91381756,159.87,159.81,7.50791225]
[1721147607900,7.91381756,159.87,159.81,6.2573]
[1721147608312,2.39088716,159.9,159.81,6.2573]
[1721147608491,1.56281756,159.89,159.81,6.2573]
[1721147608805,1.56281756,159.89,159.81,7.50850795]
[1721147608979,1.56281756,159.89,159.81,1.25120795]
[1721147609179,1.56281756,159.89,159.8,15.6437]
[1721147609180,1.56281756,159.89,159.8,21.9014]
[1721147609386,1.56281756,159.89,159.79,6.2579]
[1721147609692,1.56281756,159.89,159.79,21.9032]
[1721147609885,0.17,159.88,159.77,6.2586]
[1721147610082,1.56281756,159.87,159.76,21.9074]
[1721147610288,52.81791756,159.87,159.76,21.9074]
[1721147610501,0.17,159.86,159.76,15.6481]
[1721147610696,1.73281756,159.86,159.81,6.2571]
[1721147611017,0.17,159.86,159.78,1.25125551]
[1721147611177,1.73281756,159.86,159.78,1.25125551]
[1721147611384,0.17,159.86,159.74,15.6037]
[1721147611597,7.81831756,159.86,159.76,6.2592]
[1721147611796,45.0,159.85,159.76,6.2592]
[1721147612115,1.73281756,159.84,159.76,6.2592]
[1721147612400,1.73281756,159.84,159.8,6.2577]
[1721147612604,0.17,159.84,159.8,6.2577]
[1721147612987,0.17,159.84,159.79,21.9034]
[1721147613187,0.17,159.84,159.79,15.6454]
[1721147613403,1.73281756,159.84,159.77,6.2586]
[1721147613602,0.17,159.84,159.77,6.2586]
[1721147613798,0.17,159.84,159.78,15.646]
[1721147614014,0.17,159.85,159.8,6.2577]
[1721147614222,1.73281756,159.85,159.8,15.6441]
[1721147614400,0.17,159.85,159.8,15.6441]
[1721147614594,0.17,159.85,159.78,6.2585]
[1721147614810,0.17,159.85,159.79,1.25141206]
[1721147615016,0.17,159.85,159.8,6.2576]
[1721147615990,0.17,159.85,159.79,21.903]
[1721147616191,0.17,159.85,159.77,6.2586]
[1721147616393,0.17,159.85,159.76,15.648]
[1721147616394,10.8280696,159.9,159.78,7.50997586]
[1721147616595,51.4244,159.89,159.79,1.21854374]
[1721147616792,51.4244,159.89,159.79,7.47664374]
[1721147617210,1.56281756,159.88,159.8,16.86246748]
[1721147617421,1.56281756,159.88,159.83,6.2565]
[1721147617725,1.56281756,159.88,159.8,15.644]
[1721147617912,1.56281756,159.88,159.77,16.58791187]
[1721147618101,1.56281756,159.88,159.79,6.2579]
[1721147618301,1.56281756,159.88,159.8,6.2578]
[1721147618500,1.56281756,159.88,159.79,15.6451]
[1721147618726,6.4251,159.87,159.77,6.2589]
[1721147619014,46.56281756,159.86,159.78,6.2585]
[1721147619219,78.98,159.88,159.8,6.2576]
[1721147619220,1.56281756,159.85,159.8,6.2576]
[1721147619528,0.17,159.84,159.79,6.258]
[1721147619826,0.17,159.84,159.8,6.2577]
[1721147621011,1.56281756,159.87,159.81,7.50870924]
[1721147621319,1.56281756,159.87,159.77,15.6468]
[1721147621507,1.56281756,159.87,159.79,6.2579]
[1721147621821,1.56281756,159.87,159.8,6.2576]
[1721147622013,33.98,159.88,159.81,15.6432]
[1721147622316,1.56281756,159.87,159.79,6.2578]
[1721147622521,0.17,159.86,159.81,6.2573]
[1721147622823,0.17,159.86,159.8,7.50861827]
[1721147623022,0.17,159.86,159.81,6.2573]
[1721147623328,1.56281756,159.88,159.82,16.89286172]
[1721147623623,1.56281756,159.88,159.82,15.6421]
[1721147623927,1.56281756,159.88,159.79,15.6449]
[1721147624128,1.56281756,159.89,159.77,1.24795006]
[1721147624314,1.56281756,159.89,159.82,6.257]
[1721147624495,0.17,159.88,159.82,6.257]
[1721147624695,0.17,159.88,159.81,21.9001]
[1721147625118,0.17,159.88,159.82,6.2569]
[1721147626307,2.39088716,159.9,159.83,16.21056264]
[1721147626497,2.39088716,159.9,159.86,6.2553]
[1721147626498,0.8280696,159.9,159.86,6.2553]
[1721147626698,0.8280696,159.9,159.87,1.06087048]
[1721147627028,0.8280696,159.9,159.86,6.2553]
[1721147627230,0.8280696,159.9,159.89,6.2542]
[1721147627402,0.8280696,159.9,159.87,21.8923]
[1721147627725,0.8280696,159.9,159.87,15.6373]
[1721147628197,0.8280696,159.9,159.89,6.2542]
[1721147630412,0.8280696,159.9,159.89,22.9042]
[1721147632130,0.8280696,159.9,159.88,6.2546]
[1721147632316,0.17,159.89,159.87,21.8922]
[1721147632628,0.17,159.89,159.84,31.4575]
[1721147632813,0.17,159.89,159.85,6.2555]
[1721147633009,0.17,159.89,159.84,15.8172]
[1721147633221,0.17,159.89,159.84,22.0731]
[1721147633420,0.17,159.89,159.79,53.3533]
[1721147633621,0.17,159.89,159.83,6.2565]
[1721147633828,1.73281756,159.89,159.82,15.642]
[1721147634029,1.73281756,159.89,159.82,21.8989]
[1721147634913,1.73281756,159.89,159.83,6.2564]
[1721147635242,1.73281756,159.89,159.83,1.2511272]
[1721147635403,1.73281756,159.89,159.85,6.2554]
[1721147635602,1.73281756,159.89,159.84,15.6397]
[1721147635803,1.73281756,159.89,159.79,53.3533]
[1721147636007,0.17,159.89,159.83,15.6412]
[1721147636213,0.17,159.89,159.84,7.50707982]
[1721147636509,0.17,159.89,159.86,21.8933]
[1721147636716,0.17,159.89,159.87,6.2549]
[1721147637012,0.17,159.89,159.86,21.8933]
[1721147638303,0.17,159.89,159.86,15.638]
[1721147638809,0.8280696,159.9,159.87,1.25092899]
[1721147639015,0.8280696,159.9,159.87,7.50572899]
[1721147639216,0.8280696,159.9,159.87,1.25092899]
[1721147639806,0.8280696,159.9,159.89,6.2542]
[1721147640005,0.8280696,159.9,159.89,7.504771]
[1721147640223,0.8280696,159.9,159.89,6.2542]
[1721147640519,0.8280696,159.9,159.88,21.8909]
[1721147640934,0.8280696,159.9,159.87,6.2549]
[1721147641107,0.8280696,159.9,159.8,16.6151]
[1721147641313,14.36511756,159.89,159.79,21.9031]
[1721147641530,51.4248,159.88,159.79,15.645]
[1721147641707,1.56281756,159.87,159.77,6.2589]
[1721147642107,34.15,159.86,159.72,16.6151]
[1721147642316,6.5479,159.82,159.72,32.2665]
[1721147642511,6.5479,159.82,159.75,6.2597]
[1721147642512,1.56281756,159.81,159.75,6.2597]
[1721147642721,1.56281756,159.81,159.72,32.2665]
[1721147642722,1.73281756,159.81,159.74,21.9097]
[1721147642922,1.73281756,159.81,159.72,22.8756]
[1721147643211,1.73281756,159.81,159.74,6.2601]
[1721147643212,46.73281756,159.81,159.74,6.2601]
[1721147643417,1.73281756,159.81,159.75,6.2595]
[1721147643739,1.73281756,159.81,159.74,6.2601]
[1721147644035,1.73281756,159.81,159.73,15.6507]
[1721147644036,1.73281756,159.81,159.75,6.2596]
[1721147644217,1.73281756,159.81,159.73,21.9109]
[1721147644417,46.73281756,159.81,159.68,16.1282]
[1721147644619,33.98,159.8,159.69,15.6544]
[1721147644829,46.56281756,159.79,159.69,15.6544]
[1721147645068,0.17,159.78,159.69,15.6544]
[1721147645356,0.17,159.78,159.71,6.2612]
[1721147645558,0.17,159.78,159.69,15.6544]
[1721147645943,0.17,159.78,159.71,15.6526]
[1721147646340,1.73281756,159.78,159.73,6.2602]
[1721147646663,1.73281756,159.78,159.69,6.262]
[1721147646830,1.73281756,159.78,159.68,21.9186]
[1721147647031,1.73281756,159.78,159.69,6.262]
[1721147647323,1.73281756,159.78,159.68,21.9186]
[1721147647767,1.73281756,159.78,159.68,15.6562]
[1721147647939,1.73281756,159.78,159.68,21.9183]
[1721147648149,1.73281756,159.78,159.68,15.6562]
[1721147648150,6.259,159.77,159.68,15.6562]
[1721147648451,6.4492,159.75,159.64,277.1884]
[1721147648652,1.56281756,159.74,159.64,277.1884]
[1721147648960,11.26711756,159.73,159.64,15.6594]
[1721147649132,11.43711756,159.73,159.66,6.2631]
[1721147649334,45.0,159.72,159.64,15.6594]
[1721147649635,45.0,159.72,159.66,6.2632]
[1721147649636,1.73281756,159.71,159.66,6.2632]
[1721147649832,1.56281756,159.7,159.66,6.2632]
[1721147650157,0.17,159.69,159.65,6.2636]
[1721147650367,1.56281756,159.68,159.65,6.2636]
[1721147650659,1.73281756,159.67,159.6,32.2064]
[1721147650857,1.56281756,159.67,159.6,32.2064]
[1721147651052,0.17,159.66,159.6,21.9288]
[1721147651358,1.56281756,159.65,159.6,21.9288]
[1721147651550,0.17,159.64,159.6,15.6634]
[1721147651862,6.2749,159.67,159.57,31.3324]
[1721147652065,45.0,159.72,159.57,31.3324]
[1721147652066,0.17,159.66,159.65,6.2637]
[1721147652356,0.17,159.66,159.63,15.6611]
[1721147652658,0.17,159.66,159.64,6.264]
[1721147652835,0.17,159.66,159.63,15.6611]
[1721147653155,0.17,159.66,159.64,6.2639]
[1721147653365,0.17,159.66,159.63,15.6611]
[1721147653835,0.17,159.66,159.62,6.2645]
[1721147654039,0.17,159.66,159.57,31.3324]
[1721147654247,0.17,159.66,159.64,6.264]
[1721147654449,1.56281756,159.7,159.66,6.2633]
[1721147654632,7.76011756,159.71,159.66,6.2633]
[1721147654949,1.56281756,159.7,159.6,15.6631]
[1721147655260,45.54281756,159.7,159.6,15.6631]
[1721147655458,51.80481756,159.7,159.6,15.6631]
[1721147655835,45.17,159.69,159.6,15.6631]
[1721147656072,1.56281756,159.68,159.6,15.6631]
[1721147656374,35.54281756,159.67,159.58,6.2664]
[1721147656530,45.17,159.66,159.58,6.2664]
[1721147656736,1.56281756,159.65,159.58,6.2664]
[1721147656926,1.56281756,159.64,159.56,21.934]
[1721147657131,0.17,159.63,159.56,15.6671]
[1721147657348,6.6208,159.63,159.56,15.6671]
[1721147657547,8.18361756,159.63,159.56,15.6671]
[1721147658145,8.18361756,159.63,159.58,6.266]
[1721147658331,8.18361756,159.63,159.56,15.6671]
[1721147658738,8.18361756,159.63,159.57,1.25315836]
[1721147658934,8.18361756,159.63,159.58,7.51914046]
[1721147659255,6.5977,159.67,159.62,6.2648]
[1721147659839,8.16051756,159.67,159.57,15.6662]
[1721147660136,8.16051756,159.67,159.6,6.2656]
[1721147660338,8.16051756,159.67,159.59,15.6643]
[1721147660643,0.17,159.66,159.55,30.7541]
[1721147660850,1.56281756,159.65,159.57,15.6662]
[1721147661059,1.73281756,159.64,159.59,6.266]
[1721147661229,0.17,159.64,159.58,6.2664]
[1721147661426,0.17,159.64,159.57,15.6662]
[1721147661427,40.5777,159.67,159.57,21.9329]
[1721147661656,45.17,159.66,159.57,21.9329]
[1721147661866,45.17,159.66,159.58,6.2663]
[1721147662338,45.17,159.66,159.57,21.9329]
[1721147662539,1.56281756,159.65,159.55,15.0857]
[1721147662757,1.56281756,159.64,159.59,21.9305]
[1721147662937,0.17,159.63,159.57,6.2668]
[1721147663556,0.17,159.63,159.58,6.2663]
[1721147663964,0.17,159.63,159.6,6.2653]
[1721147664130,0.17,159.63,159.59,7.51707796]
[1721147664335,0.17,159.63,159.6,1.25298581]
[1721147664562,0.17,159.63,159.59,6.2657]
[1721147664730,0.17,159.63,159.6,7.51848667]